bitfinex-derivatives/quotes_BTCF0:USTF0_20250828
["timestamp","ask_amount","ask_price","bid_price","bid_amount"]
[1756344461171,0.92359753,111570.0,111560.0,0.14549]
[1756344461381,0.92359753,111570.0,111560.0,0.45793485]
[1756344463471,0.92359753,111570.0,111560.0,0.08751]
[1756344463666,0.0665,111560.0,111550.0,0.01664]
[1756344463873,0.0665,111550.0,111540.0,0.40281485]
[1756344464068,0.89554,111550.0,111540.0,0.64281485]
[1756344465775,0.89554,111550.0,111540.0,0.69773485]
[1756344466684,0.89554,111550.0,111540.0,0.38529]
[1756344466985,0.89654,111550.0,111540.0,0.69773485]
[1756344467383,0.89654,111550.0,111540.0,0.69873485]
[1756344469085,0.89654,111550.0,111540.0,0.69773485]
[1756344471188,0.89654,111550.0,111540.0,0.38529]
[1756344471389,0.89654,111550.0,111540.0,0.69773485]
[1756344471780,0.89654,111550.0,111540.0,0.38529]
[1756344471986,0.89654,111550.0,111540.0,0.69773485]
[1756344473487,1.24494842,111550.0,111540.0,0.38529]
[1756344473787,1.60739327,111550.0,111540.0,0.08731]
[1756344474091,1.27494842,111550.0,111540.0,0.11915]
[1756344474687,1.58739327,111550.0,111540.0,0.08731]
[1756344474990,1.27494842,111550.0,111540.0,0.08731]
[1756344475888,1.83739327,111550.0,111540.0,0.06806]
[1756344476090,1.83739327,111550.0,111540.0,0.02878]
[1756344476483,1.83739327,111550.0,111530.0,0.42184485]
[1756344476691,0.0665,111540.0,111530.0,0.45773485]
[1756344477382,0.77626,111540.0,111530.0,0.14529]
[1756344477583,0.77626,111540.0,111530.0,0.45773485]
[1756344478690,0.77626,111540.0,111530.0,0.45873485]
[1756344479390,0.89558,111540.0,111530.0,0.45773485]
[1756344479592,0.89558,111540.0,111530.0,0.45873485]
[1756344479998,0.0665,111540.0,111530.0,0.45873485]
[1756344480291,0.05121,111540.0,111530.0,0.45873485]
[1756344480488,0.71014,111540.0,111530.0,0.14629]
[1756344480696,0.71014,111540.0,111530.0,0.45873485]
[1756344481588,0.71014,111540.0,111530.0,0.11445]
[1756344481796,1.04014,111540.0,111530.0,0.40075485]
[1756344481986,1.35258485,111540.0,111530.0,0.02978]
[1756344482180,1.39258485,111540.0,111530.0,0.02978]
[1756344482788,1.64258485,111540.0,111530.0,0.02978]
[1756344484393,1.45802485,111540.0,111530.0,0.02978]
[1756344484593,1.81802485,111540.0,111530.0,0.04735]
[1756344485297,1.81802485,111540.0,111530.0,0.06878]
[1756344485793,1.43908,111540.0,111530.0,0.06878]
[1756344485994,1.75152485,111540.0,111530.0,0.06878]
[1756344486393,0.91244485,111540.0,111530.0,0.06878]
[1756344486592,1.74152485,111540.0,111530.0,0.09528]
[1756344486792,1.74152485,111540.0,111530.0,0.12918]
[1756344487300,1.85877411,111540.0,111530.0,0.12918]
[1756344487697,1.85877411,111540.0,111530.0,0.1486]
[1756344489602,1.85877411,111540.0,111530.0,0.06878]
[1756344489802,1.85877411,111540.0,111530.0,0.04735]
[1756344490504,1.85877411,111540.0,111530.0,0.02978]
[1756344490705,1.52877411,111540.0,111530.0,0.02978]
[1756344491003,1.87877411,111540.0,111530.0,0.04735]
[1756344491202,1.87877411,111540.0,111530.0,0.02978]
[1756344492098,1.04969411,111540.0,111530.0,0.02978]
[1756344492406,1.87877411,111540.0,111530.0,0.02978]
[1756344493702,0.02772,111530.0,111520.0,0.0656]
[1756344494003,0.71016485,111530.0,111520.0,0.01757]
[1756344494410,0.71016485,111530.0,111510.0,0.0605]
[1756344494411,0.71016485,111530.0,111510.0,0.08193]
[1756344494600,0.85676,111520.0,111510.0,0.11892]
[1756344494798,0.85676,111520.0,111510.0,0.11882]
[1756344494799,0.02772,111520.0,111510.0,0.11882]
[1756344495000,0.85576,111520.0,111510.0,0.14823]
[1756344495198,0.85476,111520.0,111510.0,0.14823]
[1756344495706,0.85476,111520.0,111510.0,0.15023]
[1756344495905,0.85476,111520.0,111510.0,0.15223]
[1756344496307,0.02572,111520.0,111510.0,0.15223]
[1756344496700,0.69432,111520.0,111510.0,0.15223]
[1756344497207,0.85476,111520.0,111510.0,0.15223]
[1756344497403,0.01706,111520.0,111510.0,0.15223]
[1756344497606,0.8461,111520.0,111510.0,0.46467485]
[1756344497800,0.01706,111520.0,111510.0,0.46467485]
[1756344498000,0.62138,111520.0,111510.0,0.46467485]
[1756344498207,0.62138,111520.0,111510.0,0.15223]
[1756344498406,0.86693493,111520.0,111510.0,0.46467485]
[1756344499208,0.03789493,111520.0,111510.0,0.46467485]
[1756344499408,0.66197493,111520.0,111510.0,0.46467485]
[1756344501508,0.86693493,111520.0,111510.0,0.46467485]
[1756344502513,0.86693493,111520.0,111510.0,0.15223]
[1756344502802,0.86693493,111520.0,111510.0,0.46467485]
[1756344503801,0.86693493,111520.0,111510.0,0.55434535]
[1756344504499,0.86693493,111520.0,111510.0,0.15223]
[1756344504811,0.86693493,111520.0,111510.0,0.46467485]
[1756344506609,0.86689493,111520.0,111510.0,0.46467485]
[1756344510116,0.03789493,111520.0,111510.0,0.46467485]
[1756344510317,0.86685493,111520.0,111510.0,0.46467485]
[1756344510818,0.86685493,111520.0,111510.0,0.15223]
[1756344511018,0.87551493,111520.0,111510.0,0.46467485]
[1756344511514,0.87551493,111520.0,111510.0,0.15223]
[1756344511715,0.87551493,111520.0,111510.0,0.46467485]
[1756344513920,0.87551493,111520.0,111510.0,0.15223]
[1756344514218,0.87551493,111520.0,111510.0,0.46467485]
[1756344517121,0.04655493,111520.0,111510.0,0.46467485]
[1756344517321,0.71899493,111520.0,111510.0,0.46467485]
[1756344518123,0.71899493,111520.0,111510.0,0.15223]
[1756344518322,0.71899493,111520.0,111510.0,0.46467485]
[1756344518724,0.86677493,111520.0,111510.0,0.46467485]
[1756344519124,0.03789493,111520.0,111510.0,0.46467485]
[1756344519316,0.86673493,111520.0,111510.0,0.46467485]
[1756344520423,0.86673493,111520.0,111510.0,0.15223]
[1756344520629,0.87539493,111520.0,111510.0,0.46467485]
[1756344520818,0.86673493,111520.0,111510.0,0.46467485]
[1756344523214,0.87539493,111520.0,111510.0,0.43077485]
[1756344523415,1.96471035,111520.0,111510.0,0.004]
[1756344523925,1.98850437,111520.0,111510.0,0.004]
[1756344525022,1.96571035,111520.0,111500.0,0.30161771]
[1756344525223,0.28024561,111510.0,111500.0,0.06696]
[1756344525430,0.70856562,111510.0,111500.0,0.06696]
[1756344525724,0.66856562,111510.0,111500.0,0.06696]
[1756344525920,0.73856562,111510.0,111500.0,0.06696]
[1756344526123,0.73856562,111510.0,111500.0,0.04474]
[1756344526824,0.73856562,111510.0,111500.0,0.06696]
[1756344527222,0.73856562,111510.0,111500.0,0.027]
[1756344527423,0.01056,111500.0,111490.0,0.12979]
[1756344527629,1.50923772,111500.0,111490.0,0.11578]
[1756344528019,1.50923772,111500.0,111490.0,0.14945]
[1756344528828,1.51023772,111500.0,111490.0,0.14945]
[1756344529130,1.51023772,111500.0,111490.0,0.15045]
[1756344529424,1.51023772,111500.0,111490.0,0.04764]
[1756344529618,1.51023772,111500.0,111490.0,0.0299]
[1756344529814,1.58081731,111500.0,111490.0,0.0299]
[1756344533518,0.73201731,111500.0,111490.0,0.0299]
[1756344533725,1.56077731,111500.0,111490.0,0.0299]
[1756344534027,1.56077731,111500.0,111490.0,0.001]
[1756344534521,1.81077731,111500.0,111490.0,0.001]
[1756344535824,1.81177731,111500.0,111490.0,0.001]
[1756344536024,0.02746,111490.0,111480.0,0.06886]
[1756344536225,0.72043772,111490.0,111480.0,0.06886]
[1756344536429,0.72043772,111490.0,111480.0,0.04664]
[1756344536725,1.54919772,111490.0,111480.0,0.04664]
[1756344537330,3.04919772,111490.0,111480.0,0.04664]
[1756344537629,3.04919772,111490.0,111480.0,0.04764]
[1756344538027,3.04919772,111490.0,111480.0,0.0299]
[1756344538230,3.04919772,111490.0,111480.0,0.04764]
[1756344538731,3.36893191,111490.0,111480.0,0.001]
[1756344540333,3.36993191,111490.0,111480.0,0.001]
[1756344540536,1.52846,111490.0,111480.0,0.14605]
[1756344540737,2.36722,111490.0,111480.0,0.52876191]
[1756344541131,2.36722,111490.0,111480.0,0.14605]
[1756344541332,2.36722,111490.0,111480.0,0.14505]
[1756344541537,2.36726,111490.0,111480.0,0.14505]
[1756344541939,2.36722,111490.0,111480.0,0.14505]
[1756344543438,1.53846,111490.0,111480.0,0.14505]
[1756344543642,2.36726,111490.0,111480.0,0.14505]
[1756344546735,1.53846,111490.0,111480.0,0.11185]
[1756344546934,2.3567,111490.0,111480.0,0.14505]
[1756344547134,1.53846,111490.0,111480.0,0.14505]
[1756344547332,2.35666,111490.0,111480.0,0.52776191]
[1756344547735,0.85666,111490.0,111480.0,0.52776191]
[1756344551237,0.0279,111490.0,111480.0,0.52776191]
[1756344551440,0.85666,111490.0,111480.0,0.52776191]
[1756344551936,0.86722,111490.0,111480.0,0.52776191]
[1756344552336,0.85666,111490.0,111480.0,0.52776191]
[1756344553246,0.86722,111490.0,111480.0,0.52776191]
[1756344553545,0.86722,111490.0,111480.0,0.14505]
[1756344555638,0.86714,111490.0,111480.0,0.14505]
[1756344555839,0.86714,111490.0,111480.0,0.52776191]
[1756344556839,0.86714,111490.0,111480.0,0.14505]
[1756344557541,1.24985191,111490.0,111480.0,0.06575]
[1756344557743,1.27421561,111490.0,111480.0,0.06575]
[1756344557935,1.61421561,111490.0,111480.0,0.04472]
[1756344558146,0.02746,111480.0,111470.0,0.09254]
[1756344558346,0.75017191,111480.0,111470.0,0.06575]
[1756344558535,0.75017191,111480.0,111470.0,0.02735]
[1756344559244,0.02746,111470.0,111460.0,0.14553576]
[1756344559443,0.8561,111470.0,111460.0,0.14543576]
[1756344559841,0.8561,111470.0,111460.0,0.16484576]
[1756344560344,0.0169,111470.0,111460.0,0.16484576]
[1756344560546,0.8445,111470.0,111460.0,0.16484576]
[1756344560748,0.8445,111470.0,111460.0,0.16584576]
[1756344560943,0.8445,111470.0,111460.0,0.54855767]
[1756344561344,0.8445,111470.0,111460.0,0.55055767]
[1756344561743,0.85406,111470.0,111460.0,0.16784576]
[1756344561944,0.85406,111470.0,111460.0,0.55055767]
[1756344563746,0.0159,111470.0,111460.0,0.55055767]
[1756344563950,0.8445,111470.0,111460.0,0.55055767]
[1756344564448,0.85406,111470.0,111460.0,0.55055767]
[1756344565049,0.85406,111470.0,111460.0,0.64026807]
[1756344566255,0.0159,111470.0,111460.0,0.64026807]
[1756344566460,0.84446,111470.0,111460.0,0.64026807]
[1756344567157,0.0159,111470.0,111460.0,0.64026807]
[1756344567452,0.84446,111470.0,111460.0,0.64026807]
[1756344568257,0.0159,111470.0,111460.0,0.64026807]
[1756344568458,0.84446,111470.0,111460.0,0.64026807]
[1756344569957,0.0159,111470.0,111460.0,0.64026807]
[1756344570159,0.84442,111470.0,111460.0,0.64026807]
[1756344570353,0.84442,111470.0,111460.0,0.25755616]
[1756344570555,0.82852,111470.0,111460.0,0.98026097]
[1756344571758,0.84382,111470.0,111460.0,0.64026807]
[1756344572956,0.01789164,111480.0,111470.0,0.09368]
[1756344573157,0.86167164,111480.0,111470.0,0.14863]
[1756344573456,0.87123164,111480.0,111470.0,0.14863]
[1756344574551,0.87123164,111480.0,111470.0,0.14963]
[1756344576758,0.86159164,111480.0,111470.0,0.94204431]
[1756344576958,0.84629164,111480.0,111470.0,1.19204431]
[1756344577159,0.01789164,111480.0,111470.0,1.19204431]
[1756344577364,0.84629164,111480.0,111470.0,1.19204431]
[1756344577755,0.8284,111490.0,111480.0,0.1484074]
[1756344577961,0.8384,111490.0,111480.0,0.96102931]
[1756344578263,0.87424,111490.0,111480.0,0.87102931]
[1756344578856,0.87424,111490.0,111480.0,0.39863]
[1756344578857,0.88954,111490.0,111480.0,0.39863]
[1756344579168,0.88954,111490.0,111480.0,0.87103621]
[1756344579866,0.89054,111490.0,111480.0,0.87103621]
[1756344582969,0.87524,111490.0,111480.0,0.87103621]
[1756344583870,0.89054,111490.0,111480.0,0.4883243]
[1756344584169,0.89054,111490.0,111480.0,0.87103621]
[1756344585272,0.03557959,111500.0,111490.0,0.2383163]
[1756344585576,0.44807,111520.0,111510.0,0.14863]
[1756344585768,0.44807,111520.0,111510.0,0.53134191]
[1756344585966,0.39177,111520.0,111510.0,1.00101211]
[1756344586164,0.41347,111520.0,111510.0,0.62101211]
[1756344586362,0.42535,111520.0,111510.0,0.62101211]
[1756344586672,0.42535,111520.0,111510.0,0.97101211]
[1756344586875,0.44807,111520.0,111510.0,0.62101211]
[1756344587062,0.26166028,111520.0,111510.0,0.62101211]
[1756344587267,0.33903153,111520.0,111510.0,0.62101211]
[1756344587969,0.37044675,111520.0,111510.0,0.62101211]
[1756344588368,0.37244675,111520.0,111510.0,0.62101211]
[1756344589473,0.13279647,111520.0,111510.0,0.93101211]
[1756344589675,1.00637647,111520.0,111510.0,0.96101211]
[1756344590061,1.00637647,111520.0,111510.0,0.62101211]
[1756344590263,1.00637647,111520.0,111510.0,0.97101211]
[1756344591468,0.99449647,111520.0,111510.0,0.97101211]
[1756344591868,1.00637647,111520.0,111510.0,0.62101211]
[1756344592071,1.01379647,111520.0,111510.0,0.93101211]
[1756344592269,1.00637647,111520.0,111510.0,0.93101211]
[1756344593873,1.01379647,111520.0,111510.0,0.98101211]
[1756344594068,0.18567647,111520.0,111510.0,0.98101211]
[1756344594375,0.11078647,111520.0,111510.0,0.98101211]
[1756344595067,0.16637647,111520.0,111510.0,0.2583002]
[1756344595267,0.16637647,111520.0,111510.0,1.00101211]
[1756344597376,0.16637647,111520.0,111510.0,0.2383002]
[1756344597573,0.16637647,111520.0,111510.0,1.00101211]
[1756344597972,0.20097647,111520.0,111510.0,0.62101211]
[1756344598172,0.20097647,111520.0,111510.0,1.00101211]
[1756344598875,0.18567647,111520.0,111510.0,1.00101211]
[1756344599372,0.20235647,111520.0,111510.0,0.2033402]
[1756344599576,0.21191647,111520.0,111510.0,0.2372402]
[1756344599773,0.21191647,111520.0,111510.0,0.14757]
[1756344600277,0.20235647,111520.0,111510.0,0.2372402]
[1756344600477,1.03019647,111520.0,111510.0,0.61995211]
[1756344601976,1.03975647,111520.0,111510.0,0.53028191]
[1756344602576,1.03975647,111520.0,111510.0,0.61995211]
[1756344604270,1.03019647,111520.0,111510.0,0.61995211]
[1756344604774,1.03975647,111520.0,111510.0,0.61995211]
[1756344605180,1.03019647,111520.0,111510.0,0.61995211]
[1756344606079,1.03015647,111520.0,111510.0,0.61995211]
[1756344606675,0.16739647,111520.0,111510.0,0.61995211]
[1756344606981,0.07937125,111520.0,111510.0,1.62266402]
[1756344607176,0.07937125,111520.0,111510.0,1.23995211]
[1756344608275,0.81109705,111530.0,111520.0,0.2380821]
[1756344608481,0.81109705,111530.0,111520.0,0.62079401]
[1756344608781,0.84314707,111530.0,111520.0,0.62079401]
[1756344608980,0.84314707,111530.0,111520.0,0.2380821]
[1756344609185,0.85270707,111530.0,111520.0,0.62079401]
[1756344609372,0.84314707,111530.0,111520.0,0.62079401]
[1756344609576,0.84614707,111530.0,111520.0,0.62079401]
[1756344610082,0.84914707,111530.0,111520.0,0.62079401]
[1756344610283,0.87401707,111530.0,111520.0,0.62079401]
[1756344610682,0.94538806,111530.0,111520.0,0.62079401]
[1756344610979,0.94538806,111530.0,111520.0,0.53113191]
[1756344611184,0.95494806,111530.0,111520.0,0.53113191]
[1756344611587,0.97924357,111530.0,111520.0,0.53113191]
[1756344611979,0.22867652,111530.0,111520.0,0.53113191]
[1756344612284,1.05639652,111530.0,111520.0,0.53113191]
[1756344612584,1.04683652,111530.0,111520.0,0.53113191]
[1756344612788,1.05639652,111530.0,111520.0,0.62079401]
[1756344613087,1.05639652,111530.0,111520.0,0.53113191]
[1756344613980,2.04910843,111530.0,111520.0,0.02954]
[1756344614785,0.49867652,111530.0,111520.0,0.14842]
[1756344614984,1.30639652,111530.0,111520.0,0.14842]
[1756344615586,0.47867652,111530.0,111520.0,0.53113191]
[1756344615785,1.30639652,111530.0,111520.0,0.53113191]
[1756344615988,0.21911652,111530.0,111520.0,0.62079401]
[1756344616184,0.15647652,111530.0,111520.0,0.96079401]
[1756344616382,0.17036063,111530.0,111520.0,0.96079401]
[1756344616793,0.96165063,111530.0,111520.0,1.34350592]
[1756344616984,0.93730101,111530.0,111520.0,1.37350592]
[1756344617287,0.93730101,111530.0,111520.0,0.99079401]
[1756344617694,1.02270101,111530.0,111520.0,0.62079401]
[1756344617885,0.99876101,111530.0,111520.0,0.62079401]
[1756344618191,1.00740101,111530.0,111520.0,0.62079401]
[1756344619490,0.99880101,111530.0,111520.0,0.62079401]
[1756344619987,1.02274101,111530.0,111520.0,0.62079401]
[1756344620180,1.02274101,111530.0,111520.0,0.95079401]
[1756344620585,1.01974101,111530.0,111520.0,0.95179401]
[1756344620984,0.10642101,111530.0,111520.0,1.58450592]
[1756344621488,0.10342101,111530.0,111520.0,1.58450592]
[1756344621689,0.89884,111540.0,111530.0,0.1492141]
[1756344621987,0.91404,111540.0,111530.0,0.64052505]
[1756344622889,0.94633113,111540.0,111530.0,0.64052505]
[1756344623790,0.94733113,111540.0,111530.0,0.55087095]
[1756344623986,0.95689113,111540.0,111530.0,0.13425904]
[1756344624192,1.02872183,111540.0,111530.0,0.01973904]
[1756344624392,1.0529719,111540.0,111530.0,0.04927904]
[1756344624592,1.0529719,111540.0,111530.0,0.06716904]
[1756344624986,1.0529719,111540.0,111530.0,0.52545095]
[1756344625186,1.0437319,111540.0,111530.0,0.55087095]
[1756344625686,1.0532919,111540.0,111530.0,0.04927904]
[1756344625888,1.0532919,111540.0,111530.0,0.44988095]
[1756344626089,1.0532919,111540.0,111530.0,0.55087095]
[1756344626490,1.0522919,111540.0,111530.0,0.55087095]
[1756344626687,1.0532919,111540.0,111530.0,0.55087095]
[1756344627393,1.0542919,111540.0,111530.0,0.55087095]
[1756344627695,1.0448919,111540.0,111530.0,0.55087095]
[1756344627894,0.9595319,111540.0,111530.0,0.64052505]
[1756344628088,0.10612183,111540.0,111530.0,0.64052505]
[1756344628294,0.96011183,111540.0,111530.0,0.95052505]
[1756344628597,0.97394183,111540.0,111530.0,0.95052505]
[1756344628796,1.00730183,111540.0,111530.0,0.64052505]
[1756344628998,0.99770183,111540.0,111530.0,0.64052505]
[1756344629496,1.00730183,111540.0,111530.0,0.64052505]
[1756344629697,1.00530183,111540.0,111530.0,0.64052505]
[1756344630298,0.93420183,111540.0,111530.0,1.02152505]
[1756344631696,0.93320183,111540.0,111530.0,1.02152505]
[1756344632194,0.10412183,111540.0,111530.0,1.02152505]
[1756344632395,0.83858,111550.0,111540.0,0.126086]
[1756344632592,1.17995,111550.0,111540.0,0.61793791]
[1756344632999,1.19525,111550.0,111540.0,0.61793791]
[1756344633302,0.3415,111550.0,111540.0,0.61793791]
[1756344633486,0.88588686,111550.0,111540.0,0.96793791]
[1756344633789,0.81619,111550.0,111540.0,0.96793791]
[1756344633990,0.80659,111550.0,111540.0,0.96793791]
[1756344634387,0.91549,111560.0,111550.0,0.208568]
[1756344634590,1.2193029,111560.0,111550.0,0.61792991]
[1756344635689,1.19739,111560.0,111550.0,0.61792991]
[1756344636095,1.22892733,111560.0,111550.0,0.61792991]
[1756344636799,1.23848733,111560.0,111550.0,0.61792991]
[1756344637999,1.31188263,111560.0,111550.0,0.61792991]
[1756344639402,1.30232263,111560.0,111550.0,0.61792991]
[1756344639597,1.10232263,111560.0,111550.0,0.61792991]
[1756344641104,1.10196263,111560.0,111550.0,0.61792991]
[1756344643002,1.11152263,111560.0,111550.0,0.61792991]
[1756344644307,0.92034151,111560.0,111550.0,0.61792991]
[1756344644701,0.94787927,111560.0,111550.0,0.61792991]
[1756344649807,0.11963927,111560.0,111550.0,0.61792991]
[1756344650101,0.11963927,111560.0,111550.0,1.20792991]
[1756344650306,0.86719927,111560.0,111550.0,1.20792991]
[1756344652013,0.86719927,111560.0,111550.0,1.20892991]
[1756344653204,0.86719927,111560.0,111550.0,0.95892991]
[1756344654109,0.86719927,111560.0,111550.0,0.95792991]
[1756344655000,0.86719927,111560.0,111550.0,0.86829191]
[1756344655204,0.86719927,111560.0,111550.0,0.12369]
[1756344655511,0.86719927,111560.0,111550.0,0.05599]
[1756344655908,0.86719927,111560.0,111550.0,0.15558]
[1756344656107,0.06355803,111560.0,111550.0,0.2452179]
[1756344656307,0.86719927,111560.0,111550.0,0.2452179]
[1756344656508,0.86719927,111560.0,111550.0,0.62792981]
[1756344656813,0.86819927,111560.0,111550.0,0.62792981]
[1756344657012,0.86919927,111560.0,111550.0,0.62792981]
[1756344657314,0.04163927,111560.0,111550.0,0.62792981]
[1756344657502,0.86915927,111560.0,111550.0,0.62792981]
[1756344658113,0.89308919,111560.0,111550.0,0.62792981]
[1756344659614,0.89308919,111560.0,111550.0,0.53829191]
[1756344662610,0.89308919,111560.0,111550.0,0.62792981]
[1756344662910,0.04163927,111560.0,111550.0,0.62792981]
[1756344663115,0.89321957,111560.0,111550.0,0.62792981]
[1756344663511,0.89221934,111560.0,111550.0,0.62792981]
[1756344664518,0.0647012,111560.0,111550.0,0.62792981]
[1756344664719,0.8922212,111560.0,111550.0,0.62792981]
[1756344664922,0.8912212,111560.0,111550.0,0.62792981]
[1756344665120,0.86725927,111560.0,111550.0,0.7083297]
[1756344666831,0.86725927,111560.0,111550.0,0.20408989]
[1756344667115,0.86725927,111560.0,111550.0,0.53924191]
[1756344668318,0.86725927,111560.0,111550.0,0.6196418]
[1756344669418,0.68644249,111560.0,111550.0,0.6196418]
[1756344669718,0.68644249,111560.0,111550.0,0.53924191]
[1756344670220,0.68644249,111560.0,111550.0,0.15653]
[1756344670615,0.68644249,111560.0,111550.0,0.53924191]
[1756344671217,1.3923201,111560.0,111550.0,0.0386]
[1756344671419,1.7723201,111560.0,111550.0,0.01]
[1756344671820,1.79728765,111560.0,111550.0,0.01]
[1756344672619,1.82587878,111560.0,111550.0,0.01]
[1756344672827,1.82487878,111560.0,111530.0,0.04799904]
[1756344673124,0.38271191,111550.0,111530.0,0.38533904]
[1756344673326,0.82828,111540.0,111530.0,0.48567904]
[1756344673627,1.53099191,111540.0,111530.0,0.36789904]
[1756344674222,1.78099191,111540.0,111530.0,0.36789904]
[1756344674623,1.78199191,111540.0,111530.0,0.36789904]
[1756344674927,1.00371191,111540.0,111530.0,0.38533904]
[1756344675126,1.00371191,111540.0,111530.0,0.40728904]
[1756344675127,1.44956,111540.0,111530.0,0.40728904]
[1756344675328,1.45056,111540.0,111530.0,0.40728904]
[1756344675522,1.08044,111540.0,111530.0,0.86839095]
[1756344679427,0.252,111540.0,111530.0,0.86839095]
[1756344679627,0.82984,111540.0,111530.0,0.95804485]
[1756344681830,0.83012,111540.0,111530.0,1.20804485]
[1756344682820,0.002,111540.0,111530.0,1.20804485]
[1756344683024,0.82996,111540.0,111530.0,1.20804485]
[1756344683230,0.82896,111540.0,111530.0,1.20804485]
[1756344683728,0.82884,111540.0,111530.0,1.20804485]
[1756344685129,0.82784,111540.0,111530.0,1.20804485]
[1756344687229,0.01795734,111550.0,111540.0,0.08785]
[1756344687530,0.84549734,111550.0,111540.0,0.52865191]
[1756344688327,0.84649734,111550.0,111540.0,0.52865191]
[1756344688529,0.84749734,111550.0,111540.0,0.52865191]
[1756344689734,0.84749734,111550.0,111540.0,0.14594]
[1756344689935,0.84749734,111550.0,111540.0,0.52865191]
[1756344691535,0.64783466,111550.0,111540.0,0.52865191]
[1756344693035,0.64783466,111550.0,111540.0,0.61829791]
[1756344693538,0.65783466,111550.0,111540.0,0.61829791]
[1756344694029,0.82964,111550.0,111540.0,0.61829791]
[1756344694235,0.002,111550.0,111540.0,0.89829791]
[1756344696039,0.001,111550.0,111540.0,0.89829791]
[1756344696239,0.92859683,111560.0,111550.0,0.14838]
[1756344696442,0.92849683,111560.0,111550.0,0.53109191]
[1756344696944,0.92845683,111560.0,111550.0,0.62073001]
[1756344697137,0.10085683,111560.0,111550.0,0.62073001]
[1756344697433,0.10085683,111560.0,111550.0,0.2380181]
[1756344697639,0.10085683,111560.0,111550.0,0.53109191]
[1756344698031,0.10185683,111560.0,111550.0,0.53109191]
[1756344698229,0.10185683,111560.0,111550.0,0.14838]
[1756344698433,0.10285683,111560.0,111550.0,0.53109191]
[1756344703742,0.10285683,111560.0,111550.0,0.62072991]
[1756344703743,0.93037683,111560.0,111550.0,0.62072991]
[1756344703943,0.93037683,111560.0,111550.0,0.53109191]
[1756344706337,1.91308874,111560.0,111550.0,0.06971]
[1756344706538,1.93755347,111560.0,111550.0,0.0291]
[1756344707149,1.93755347,111560.0,111540.0,0.06755016]
[1756344707446,1.68765347,111560.0,111540.0,0.09013016]
[1756344707639,0.38271191,111550.0,111540.0,0.09013016]
[1756344707840,0.77091745,111550.0,111530.0,0.33256904]
[1756344708051,1.21019191,111540.0,111530.0,0.42453904]
[1756344708239,1.20748,111540.0,111530.0,0.42443904]
[1756344708437,1.20748,111540.0,111530.0,0.44246904]
[1756344708636,1.20748,111540.0,111530.0,0.46504904]
[1756344709248,1.20748,111540.0,111530.0,0.49793904]
[1756344709541,1.20748,111540.0,111530.0,0.23233904]
[1756344709747,1.20748,111540.0,111530.0,0.23433904]
[1756344710143,1.84019191,111540.0,111530.0,0.1421]
[1756344710445,1.86466464,111540.0,111530.0,0.1421]
[1756344710646,1.86466464,111540.0,111530.0,0.003]
[1756344710949,1.86566464,111540.0,111530.0,0.002]
[1756344711147,1.86566464,111540.0,111530.0,0.0311]
[1756344711445,1.86666464,111540.0,111530.0,0.0291]
[1756344712550,1.86670464,111540.0,111530.0,0.0291]
[1756344713155,1.61670464,111540.0,111530.0,0.0291]
[1756344715147,1.59223191,111540.0,111530.0,0.0291]
[1756344716749,0.76471191,111540.0,111530.0,0.0291]
[1756344716952,1.59227191,111540.0,111530.0,0.0291]
[1756344718853,1.84227191,111540.0,111520.0,0.0001]
[1756344719050,1.84227191,111540.0,111520.0,0.05912]
[1756344719051,0.38271191,111530.0,111520.0,0.05912]
[1756344719250,0.75271191,111530.0,111520.0,0.05902]
[1756344720048,0.77088734,111530.0,111520.0,0.02902]
[1756344720250,1.59844734,111530.0,111520.0,0.02902]
[1756344720753,1.84844734,111530.0,111520.0,0.02902]
[1756344720952,1.84844734,111530.0,111510.0,0.02912]
[1756344721250,0.82756,111520.0,111510.0,0.18037]
[1756344721557,1.17656,111520.0,111510.0,0.18027]
[1756344721857,1.55927191,111520.0,111510.0,0.02902]
[1756344722356,1.55927191,111520.0,111510.0,0.03202]
[1756344723155,1.56031191,111520.0,111510.0,0.03202]
[1756344723344,0.73271191,111520.0,111510.0,0.03202]
[1756344723545,1.72349543,111530.0,111520.0,0.02902]
[1756344723844,3.24380734,111530.0,111520.0,0.02902]
[1756344724657,3.36293171,111530.0,111520.0,0.02902]
[1756344725255,2.9802198,111530.0,111520.0,0.11743]
[1756344725458,2.9802198,111530.0,111520.0,0.15027]
[1756344725848,3.36293171,111530.0,111520.0,0.15027]
[1756344726454,2.53533171,111530.0,111520.0,0.15027]
[1756344726759,3.36293171,111530.0,111520.0,0.15027]
[1756344727162,1.72349543,111530.0,111520.0,0.15027]
[1756344727364,2.67113543,111530.0,111520.0,0.53298191]
[1756344727861,2.67113543,111530.0,111520.0,0.15027]
[1756344728362,1.84349543,111530.0,111520.0,0.15027]
[1756344728662,2.67113543,111530.0,111520.0,0.15027]
[1756344729467,2.67113543,111530.0,111520.0,0.53298191]
[1756344730066,1.84349543,111530.0,111520.0,0.53298191]
[1756344730362,2.67113543,111530.0,111520.0,0.53298191]
[1756344731067,1.84349543,111530.0,111520.0,0.53298191]
[1756344731266,2.67113543,111530.0,111520.0,0.53298191]
[1756344732070,2.55113543,111530.0,111520.0,0.78298191]
[1756344732365,0.84581543,111530.0,111520.0,0.78298191]
[1756344732664,0.84581543,111530.0,111520.0,0.87264411]
[1756344732856,0.84581543,111530.0,111520.0,1.20264411]
[1756344733057,0.84581543,111530.0,111520.0,0.87264411]
[1756344734164,0.01817543,111530.0,111520.0,1.23264411]
[1756344734366,0.84577543,111530.0,111520.0,1.23264411]
[1756344734665,0.84577543,111530.0,111520.0,0.8499322]
[1756344734867,0.84577543,111530.0,111520.0,1.23264411]
[1756344736971,0.84577543,111530.0,111520.0,0.87264411]
[1756344737968,0.01817543,111530.0,111520.0,0.87264411]
[1756344738267,0.46626,111540.0,111530.0,0.239924]
[1756344738473,0.46616,111540.0,111530.0,0.62263591]
[1756344739170,0.01830554,111550.0,111540.0,0.239916]
[1756344739369,0.91576554,111550.0,111540.0,0.62262791]
[1756344739961,0.91576554,111550.0,111540.0,0.53298191]
[1756344741071,0.91676554,111550.0,111540.0,0.53298191]
[1756344741273,0.91676554,111550.0,111540.0,0.62262781]
[1756344741473,0.91776554,111550.0,111540.0,0.53298191]
[1756344742377,0.84768554,111550.0,111540.0,0.62262791]
[1756344742571,0.84768554,111550.0,111540.0,0.53298191]
[1756344743072,0.84768554,111550.0,111540.0,0.11743]
[1756344743377,0.84768554,111550.0,111540.0,0.15027]
[1756344743672,0.84668554,111550.0,111540.0,0.53298191]
[1756344744571,0.84768554,111550.0,111540.0,0.53298191]
[1756344745276,0.84668554,111550.0,111540.0,0.62262791]